fUST/lending_fUST_20250319
["ID","MTS","AMOUNT","RATE_DAILY","PERIOD"]
[356353006,1742328735853,-486.597,0.0004,120]
[356353007,1742328735878,-3047.0,0.0004,120]
[356353008,1742328735903,-2000.0,0.0004,120]
[356353009,1742328735928,-417.85479977,0.0004,120]
[356353010,1742328735966,-200.0,0.0004071,58]
[356353011,1742328735995,-2688.789,0.000408,60]
[356353012,1742328736022,-2000.0,0.00041,30]
[356353013,1742328736049,-500.0,0.00041095,120]
[356353014,1742328736079,-500.0,0.00041095,120]
[356353015,1742328736105,-500.0,0.00041095,120]
[356353016,1742328736131,-500.0,0.00041095,120]
[356353017,1742328736158,-500.0,0.00041095,120]
[356353018,1742328736183,-559.15993608,0.00041095,120]
[356353019,1742328736212,-2434.53,0.00041095,120]
[356353020,1742328736238,-500.0,0.00041095,120]
[356353021,1742328736264,-500.0,0.00041095,120]
[356353022,1742328736290,-500.0,0.00041095,120]
[356353023,1742328736318,-500.0,0.00041095,120]
[356353024,1742328736344,-500.0,0.00041095,120]
[356353025,1742328736373,-500.0,0.00041095,120]
[356353026,1742328736403,-500.0,0.00041095,120]
[356353027,1742328736428,-500.0,0.00041095,120]
[356353028,1742328736457,-500.0,0.00041095,120]
[356353029,1742328736483,-500.0,0.00041095,120]
[356353030,1742328736509,-500.0,0.00041095,120]
[356353031,1742328736535,-500.0,0.00041095,120]
[356353032,1742328736561,-500.0,0.00041095,120]
[356353033,1742328736588,-500.0,0.00041095,120]
[356353034,1742328736613,-500.0,0.00041095,120]
[356353035,1742328736638,-419.15857203,0.00041095,120]
[356353036,1742328736663,-100000.0,0.00041096,30]
[356353037,1742328736688,-183.368106,0.00041096,120]
[356353038,1742328736714,-500.0,0.00041096,120]
[356353039,1742328736739,-500.0,0.00041096,120]
[356353040,1742328736764,-500.0,0.00041096,120]
[356353041,1742328736789,-300.0612543,0.00041096,31]
[356353042,1742328736813,-500.0,0.00041096,31]
[356353043,1742328736839,-200.1429267,0.00041096,31]
[356353044,1742328736864,-1089.07170435,0.00041465,66]
[356353045,1742328736890,-200.0,0.00041507,120]
[356353046,1742328736918,-200.0,0.00041511,120]
[356353047,1742328736944,-1089.07170435,0.00041565,70]
[356353048,1742328736970,-2434.53,0.00041643,120]
[356353049,1742328736995,-1089.07170435,0.00041665,60]
[356353050,1742328737022,-1089.07170435,0.00041765,70]
[356353051,1742328737047,-1089.07170435,0.00041865,79]
[356353052,1742328737073,-1089.07170435,0.00041965,53]
[356353053,1742328737099,-10000.0,0.00042,42]
[356353054,1742328737125,-1000.00304655,0.00042,60]
[356353055,1742328737150,-150.0,0.00042,120]
[356353056,1742328737175,-2000.0,0.00042,30]
[356353057,1742328737201,-200.0,0.00042,120]
[356353058,1742328737227,-5782.0,0.00042,120]
[356353059,1742328737253,-170.0,0.00042,120]
[356353060,1742328737279,-1089.07170435,0.00042065,80]
[356353061,1742328737305,-1089.07170435,0.00042165,31]
[356353062,1742328737335,-2434.53,0.00042191,120]
[356353063,1742328737364,-1089.07170435,0.00042265,37]
[356353064,1742328737391,-1089.07170435,0.00042365,50]
[356353065,1742328737419,-1089.07170435,0.00042465,70]
[356353066,1742328737448,-2000.0,0.000425,30]
[356353067,1742328737475,-5000.0,0.000425,100]
[356353068,1742328737501,-5350.62,0.000425,120]
[356353069,1742328737527,-1089.07170435,0.00042565,70]
[356353070,1742328737552,-1089.07170435,0.00042665,62]
[356353071,1742328737580,-200.0,0.0004271,63]
[356353072,1742328737606,-2434.53,0.00042739,120]
[356353073,1742328737631,-1089.07170435,0.00042765,52]
[356353074,1742328737656,-2536.62854223,0.000428,90]
[356353075,1742328737681,-1089.07170435,0.00042865,33]
[356353076,1742328737707,-1089.07170435,0.00042965,36]
[356353077,1742328737733,-2000.0,0.00043,30]
[356353078,1742328737758,-354.59659818,0.00043,120]
[356353079,1742328737784,-506.78,0.00043,120]
[356353080,1742328737811,-1089.07170435,0.00043065,68]
[356353081,1742328737840,-1089.07170435,0.00043165,52]
[356353082,1742328737866,-1089.07170435,0.00043265,55]
[356353083,1742328737893,-2434.53,0.00043287,120]
[356353084,1742328737919,-1089.07170435,0.00043365,72]
[356353085,1742328737945,-2888.283,0.00043435,120]
[356353086,1742328737970,-2888.283,0.00043435,120]
[356353087,1742328737996,-2888.284,0.00043435,120]
[356353088,1742328738022,-2888.284,0.00043435,120]
[356353089,1742328738048,-2888.283,0.00043435,120]
[356353090,1742328738076,-200.0,0.00043437,120]
[356353091,1742328738103,-1089.07170435,0.00043465,76]
[356353092,1742328738131,-200.0,0.00043481,120]
[356353093,1742328738158,-2000.0,0.000435,30]
[356353094,1742328738184,-1089.07170435,0.00043565,69]
[356353095,1742328738211,-1089.07170435,0.00043665,47]
[356353096,1742328738238,-200.0,0.00043749,120]
[356353097,1742328738266,-1089.07170435,0.00043765,50]
[356353098,1742328738296,-563.88607767,0.00043835,120]
[356353099,1742328738324,-1000.0,0.00043835,120]
[356353100,1742328738507,-1000.0,0.00043835,120]
[356353101,1742328738533,-1000.0,0.00043835,120]
[356353102,1742328738558,-1000.0,0.00043835,120]
[356353103,1742328738583,-1000.0,0.00043835,120]
[356353104,1742328738608,-1000.0,0.00043835,120]
[356353105,1742328738633,-1000.0,0.00043835,120]
[356353106,1742328738657,-1000.0,0.00043835,120]
[356353107,1742328738682,-1037.01198672,0.00043835,120]
[356353108,1742328738707,-2434.53,0.00043835,120]
[356353109,1742328750427,1447.985632,0.00045548,30]
[356353110,1742328767689,2000.0,0.00045548,30]
[356353111,1742328768208,2000.0,0.00045548,30]
[356353112,1742328768640,882.7,0.00045548,30]
[356353113,1742328777178,1062.44122439,0.00045548,30]
[356353114,1742328830011,150.0,0.00045548,120]
[356353117,1742328903243,1492.64648155,0.00045548,120]
[356353118,1742328903275,1062.4412234,0.00045548,30]
[356353119,1742328910961,500.0,0.00045548,30]
[356353120,1742328912388,1348.95,0.00045548,120]
[356353121,1742328912825,1348.95,0.00045548,120]
[356353122,1742328912948,1348.95,0.00045548,120]
[356353123,1742328913236,1348.95,0.00045548,120]
[356353124,1742328913513,1348.95,0.00045548,120]
[356353125,1742328913753,1348.95,0.00045548,120]
[356353126,1742328914050,1348.95,0.00045548,120]
[356353127,1742328914080,500.0,0.00045548,30]
[356353128,1742328914328,1348.95,0.00045548,120]
[356353129,1742328914600,1348.95,0.00045548,120]
[356353130,1742328914877,1348.95,0.00045548,120]
[356353131,1742328915124,1348.95,0.00045548,120]
[356353132,1742328915391,1348.95,0.00045548,120]
[356353133,1742328915745,1348.95,0.00045548,120]
[356353134,1742328916009,1348.95,0.00045548,120]
[356353135,1742328916547,1348.95,0.00045548,120]
[356353136,1742328916863,1348.95,0.00045548,120]
[356353137,1742328917250,1348.95,0.00045548,120]
[356353138,1742328917521,1348.95,0.00045548,120]
[356353140,1742328917790,1348.95,0.00045548,120]
[356353141,1742328918032,1348.95,0.00045548,120]
[356353142,1742328918284,1348.95,0.00045548,120]
[356353143,1742328918530,1348.95,0.00045548,120]
[356353144,1742328918785,1348.95,0.00045548,120]
[356353145,1742328919067,1349.00710607,0.00045548,120]
[356353146,1742328928133,200.93763359,0.00045548,120]
[356353149,1742329044036,254.25,0.00045548,30]
[356353150,1742329044590,336.75,0.00045548,30]
[356353155,1742329130372,150.0,0.00045501,120]
[356353156,1742329137678,1062.44122439,0.00045501,30]
[356353157,1742329144991,1348.95,0.00045501,120]
[356353158,1742329145601,1348.95,0.00045501,120]
[356353159,1742329145888,1348.95,0.00045501,120]
[356353160,1742329146145,1348.95,0.00045501,120]
[356353161,1742329146401,1348.95,0.00045501,120]
[356353162,1742329146793,1348.95,0.00045501,120]
[356353163,1742329147057,1348.95,0.00045501,120]
[356353164,1742329147330,1348.95,0.00045501,120]
[356353165,1742329147590,1348.95,0.00045501,120]
[356353166,1742329147837,1348.95,0.00045501,120]
[356353167,1742329148165,1348.95,0.00045501,120]
[356353168,1742329148422,1348.95,0.00045501,120]
[356353169,1742329148673,1348.95,0.00045501,120]
[356353170,1742329148987,1348.95,0.00045501,120]
[356353171,1742329149478,1348.95,0.00045501,120]
[356353172,1742329149595,1348.95,0.00045501,120]
[356353173,1742329149843,1348.95,0.00045501,120]
[356353174,1742329150096,1348.95,0.00045501,120]
[356353175,1742329150370,1348.95,0.00045501,120]
[356353176,1742329150641,1348.95,0.00045501,120]
[356353177,1742329150896,1348.95,0.00045501,120]
[356353178,1742329151139,1348.95,0.00045501,120]
[356353179,1742329151429,1348.95,0.00045501,120]
[356353180,1742329151703,1349.00710607,0.00045501,120]
[356353181,1742329203169,1492.64648155,0.00045501,120]
[356353182,1742329222912,500.0,0.00045501,30]
[356353183,1742329225465,500.0,0.00045501,30]
[356353187,1742329243447,24900.0,7.397e-05,2]
[356353189,1742329354294,1000.0,0.00045501,30]
[356353190,1742329355279,1000.0,0.00045501,30]
[356353191,1742329355868,1000.0,0.00045501,30]
[356353192,1742329356929,1000.0,0.00045501,30]
[356353193,1742329357320,1000.0,0.00045501,30]
[356353194,1742329357814,1236.24702,0.00045501,30]
[356353195,1742329371280,2000.0,0.00045501,30]
[356353196,1742329371903,467.099999,0.00045501,30]
[356353197,1742329373216,2000.0,0.00045501,30]
[356353198,1742329373953,2000.0,0.00045501,30]
[356353199,1742329374526,883.3,0.00045501,30]
[356353201,1742329533153,-300.0,8.091e-05,2]
[356353202,1742329533177,-593.2992977,8.092e-05,2]
[356353203,1742329533200,-500.0,8.092e-05,2]
[356353204,1742329533223,-241.79505794,8.092e-05,2]
[356353205,1742329533246,-500.0,8.092e-05,2]
[356353206,1742329533282,-398.03023442,8.092e-05,2]
[356353208,1742329549100,-101.96976558,8.092e-05,2]
[356353209,1742329549124,-473.30717442,8.092e-05,2]
[356353211,1742329561798,200.93763359,0.00045501,120]
[356353212,1742329571293,177.10636203,8e-05,2]
[356353215,1742329590093,-26.69282558,8.092e-05,2]
[356353216,1742329590118,-150.41353645,8.092e-05,2]
[356353217,1742329635120,-3.05357163,8.092e-05,2]
[356353218,1742329635145,-410.88072837,8.092e-05,2]
[356353219,1742329651955,3139.75192936,0.00045501,120]
[356353220,1742329658073,3238.05476728,0.00045501,45]
[356353221,1742329663862,351.46835599,0.00045501,120]
[356353222,1742329669307,646.56161293,0.00045501,120]
[356353223,1742329674839,514.63735385,0.00045501,120]
[356353224,1742329687119,833.89570802,0.00045501,32]
[356353225,1742329693757,246.8323394,0.00045501,120]
[356353226,1742329696137,498.999998,0.00045501,120]
[356353233,1742329702727,903.16462396,0.00045501,120]
[356353234,1742329704803,364.82073444,0.00045501,120]
[356353235,1742329705920,701.26970613,0.00045501,120]
[356353236,1742329707194,2908.55546885,0.00045501,30]
[356353237,1742329707314,967.75434756,0.00045501,120]
[356353238,1742329709554,539.2352904,0.00045501,120]
[356353239,1742329710443,2152.70000238,0.00045501,120]
[356353240,1742329711948,678.74930139,0.00045501,120]
[356353241,1742329712253,698.9703345,0.00045501,30]
[356353242,1742329713157,205.41079533,0.00045501,35]
[356353243,1742329713314,240.82074905,0.00045501,120]
[356353244,1742329713420,2259.78545909,0.00045501,60]
[356353245,1742329713858,696.98001881,0.00045501,30]
[356353246,1742329715165,1344.50966741,0.00045501,120]
[356353247,1742329715375,358.48245012,0.00045501,30]
[356353248,1742329715721,934.23392216,0.00045501,120]
[356353249,1742329716087,2000.0,0.00045501,120]
[356353250,1742329716658,1085.12038969,0.00045501,120]
[356353251,1742329716793,302.47747621,0.00045501,120]
[356353252,1742329717026,1555.2963713,0.00045501,30]
[356353253,1742329717296,936.76783936,0.00045501,120]
[356353254,1742329717355,3126.04886504,0.00045501,120]
[356353255,1742329718446,2542.97751357,0.00045501,120]
[356353256,1742329719148,342.60783607,0.00045501,120]
[356353257,1742329719414,303.06619794,0.00045501,120]
[356353258,1742329719556,290.98488736,0.00045501,120]
[356353259,1742329719885,993.51135217,0.00045501,120]
[356353260,1742329720265,1686.93581352,0.00045501,120]
[356353261,1742329720442,440.05446864,0.00045501,120]
[356353262,1742329720927,2298.40915448,0.00045501,120]
[356353263,1742329721381,801.25921172,0.00045501,120]
[356353264,1742329721673,420.63619656,0.00045501,120]
[356353265,1742329721819,1446.27145318,0.00045501,120]
[356353266,1742329721849,212.90981427,0.00045501,120]
[356353267,1742329722430,231.87756138,0.00045501,120]
[356353269,1742329723164,312.56979527,0.00045501,120]
[356353270,1742329723251,200.92588983,0.00045501,120]
[356353271,1742329724348,156.38702288,0.00045501,120]
[356353272,1742329724384,2498.12441406,0.00045501,30]
[356353273,1742329724416,2067.1214664,0.00045501,120]
[356353274,1742329724722,363.02931398,0.00045501,120]
[356353275,1742329724786,2116.51564648,0.00045501,120]
[356353276,1742329724816,3026.31682641,0.00045501,30]
[356353328,1742329831948,-89.11927163,8.092e-05,2]
[356353329,1742329831959,-500.0,8.092e-05,2]
[356353330,1742329831968,-500.0,8.092e-05,2]
[356353331,1742329831978,-500.0,8.092e-05,2]
[356353332,1742329831987,-500.0,8.092e-05,2]
[356353333,1742329831997,-500.0,8.092e-05,2]
[356353334,1742329832006,-500.0,8.092e-05,2]
[356353335,1742329832015,-156246.92644699,8.093e-05,2]
[356353336,1742329832026,-500.0,8.193e-05,2]
[356353337,1742329832035,-500.0,8.193e-05,2]
[356353338,1742329832044,-500.0,8.193e-05,2]
[356353339,1742329832054,-500.0,8.193e-05,2]
[356353340,1742329832063,-500.0,8.193e-05,2]
[356353341,1742329832072,-500.0,8.193e-05,2]
[356353342,1742329832082,-500.0,8.193e-05,2]
[356353343,1742329832091,-500.0,8.193e-05,2]
[356353344,1742329832100,-500.0,8.193e-05,2]
[356353345,1742329832110,-500.0,8.193e-05,2]
[356353346,1742329832119,-500.0,8.193e-05,2]
[356353347,1742329832129,-500.0,8.193e-05,2]
[356353348,1742329832139,-500.0,8.193e-05,2]
[356353349,1742329832148,-500.0,8.193e-05,2]
[356353350,1742329832157,-500.0,8.193e-05,2]
[356353351,1742329832166,-512.36738956,8.193e-05,2]
[356353352,1742329832177,-500.0,8.193e-05,2]
[356353353,1742329832186,-500.0,8.193e-05,2]
[356353354,1742329832196,-205.47651107,8.193e-05,2]
[356353355,1742329832206,-600.0,8.214e-05,2]
[356353356,1742329832215,-500.0,8.219e-05,2]
[356353357,1742329832225,-500.0,8.219e-05,2]
[356353358,1742329832234,-500.0,8.219e-05,2]
[356353359,1742329832244,-500.0,8.219e-05,2]
[356353360,1742329832253,-286.99826955,8.219e-05,2]
[356353361,1742329832263,-500.0,8.219e-05,2]
[356353362,1742329832273,-500.0,8.219e-05,2]
[356353363,1742329832282,-500.0,8.219e-05,2]
[356353364,1742329832291,-500.0,8.219e-05,2]
[356353365,1742329832301,-500.0,8.219e-05,2]
[356353366,1742329832311,-500.0,8.219e-05,2]
[356353367,1742329832321,-472.37902729,8.219e-05,2]
[356353368,1742329832331,-500.0,8.219e-05,2]
[356353369,1742329832341,-500.0,8.219e-05,2]
[356353370,1742329832351,-500.0,8.219e-05,2]
[356353371,1742329832360,-524.63307505,8.219e-05,2]
[356353372,1742329832370,-500.0,8.219e-05,2]
[356353373,1742329832379,-508.45988643,8.219e-05,2]
[356353374,1742329832389,-500.0,8.219e-05,2]
[356353375,1742329832399,-500.0,8.219e-05,2]
[356353376,1742329832409,-565.70597599,8.219e-05,2]
[356353377,1742329832418,-500.0,8.219e-05,2]
[356353378,1742329832428,-500.0,8.219e-05,2]
[356353379,1742329832437,-500.0,8.219e-05,2]
[356353380,1742329832447,-500.0,8.219e-05,2]
[356353381,1742329832456,-500.0,8.219e-05,2]
[356353382,1742329832466,-500.0,8.219e-05,2]
[356353383,1742329832476,-500.0,8.219e-05,2]
[356353384,1742329832485,-500.0,8.219e-05,2]
[356353385,1742329832495,-500.0,8.219e-05,2]
[356353386,1742329832507,-500.0,8.219e-05,2]
[356353387,1742329832517,-224.20510796,8.219e-05,2]
[356353388,1742329832527,-186.82460035,8.219e-05,2]
[356353389,1742329832537,-500.0,8.219e-05,2]
[356353390,1742329832547,-500.0,8.219e-05,2]
[356353391,1742329832556,-500.0,8.219e-05,2]
[356353392,1742329832567,-500.0,8.219e-05,2]
[356353393,1742329832576,-401.37814278,8.219e-05,2]
[356353394,1742329832585,-500.0,8.219e-05,2]
[356353395,1742329832595,-500.0,8.219e-05,2]
[356353396,1742329832605,-500.0,8.219e-05,2]
[356353397,1742329832614,-500.0,8.219e-05,2]
[356353398,1742329832623,-500.0,8.219e-05,2]
[356353399,1742329832632,-289.34870889,8.219e-05,2]
[356353400,1742329832642,-323.60438888,8.219e-05,2]
[356353401,1742329832651,-500.0,8.219e-05,2]
[356353402,1742329832660,-500.0,8.219e-05,2]
[356353403,1742329832669,-459.31998981,8.219e-05,2]
[356353404,1742329832679,-500.0,8.219e-05,2]
[356353405,1742329832688,-500.0,8.219e-05,2]
[356353406,1742329832697,-500.0,8.219e-05,2]
[356353407,1742329832706,-230.69994854,8.219e-05,2]
[356353408,1742329832720,-269.30005146,8.219e-05,2]
[356353409,1742329832732,-500.0,8.219e-05,2]
[356353410,1742329832741,-500.0,8.219e-05,2]
[356353411,1742329832750,-505.52509881,8.219e-05,2]
[356353412,1742329832759,-500.0,8.219e-05,2]
[356353413,1742329832769,-429.17204681,8.219e-05,2]
[356353424,1742329838287,-70.82795319,8.219e-05,2]
[356353425,1742329838296,-500.0,8.219e-05,2]
[356353426,1742329838306,-500.0,8.219e-05,2]
[356353427,1742329838316,-500.0,8.219e-05,2]
[356353428,1742329838326,-514.24604591,8.219e-05,2]
[356353429,1742329838336,-500.0,8.219e-05,2]
[356353430,1742329838346,-500.0,8.219e-05,2]
[356353431,1742329838355,-500.0,8.219e-05,2]
[356353432,1742329838366,-500.0,8.219e-05,2]
[356353433,1742329838375,-500.0,8.219e-05,2]
[356353434,1742329838385,-500.0,8.219e-05,2]
[356353435,1742329838395,-413.69860278,8.219e-05,2]
[356353436,1742329838404,-584.54434079,8.219e-05,2]
[356353437,1742329838414,-500.0,8.219e-05,2]
[356353438,1742329838423,-500.0,8.219e-05,2]
[356353439,1742329838433,-500.0,8.219e-05,2]
[356353440,1742329838443,-500.0,8.219e-05,2]
[356353441,1742329838452,-500.0,8.219e-05,2]
[356353442,1742329838462,-500.0,8.219e-05,2]
[356353443,1742329838472,-500.0,8.219e-05,2]
[356353444,1742329838482,-504.97798111,8.219e-05,2]
[356353445,1742329838492,-500.0,8.219e-05,2]
[356353446,1742329838502,-500.0,8.219e-05,2]
[356353447,1742329838511,-500.0,8.219e-05,2]
[356353448,1742329838521,-500.0,8.219e-05,2]
[356353449,1742329838530,-500.0,8.219e-05,2]
[356353450,1742329838540,-565.8049312,8.219e-05,2]
[356353451,1742329838549,-500.0,8.219e-05,2]
[356353452,1742329838559,-408.07156162,8.219e-05,2]
[356353453,1742329838568,-500.0,8.219e-05,2]
[356353454,1742329838579,-500.0,8.219e-05,2]
[356353455,1742329838588,-500.0,8.219e-05,2]
[356353456,1742329838598,-500.0,8.219e-05,2]
[356353457,1742329838607,-500.0,8.219e-05,2]
[356353458,1742329838616,-500.0,8.219e-05,2]
[356353459,1742329838629,-500.0,8.219e-05,2]
[356353460,1742329838637,-500.0,8.219e-05,2]
[356353461,1742329838647,-500.0,8.219e-05,2]
[356353462,1742329838656,-500.0,8.219e-05,2]
[356353463,1742329838665,-506.59184356,8.219e-05,2]
[356353464,1742329838675,-510.53470994,8.219e-05,2]
[356353465,1742329838684,-588.74,8.219e-05,2]
[356353466,1742329838693,-500.0,8.219e-05,2]
[356353467,1742329838703,-500.0,8.219e-05,2]
[356353468,1742329838712,-500.0,8.219e-05,2]
[356353469,1742329838722,-500.0,8.219e-05,2]
[356353470,1742329838736,-500.0,8.219e-05,2]
[356353471,1742329838745,-500.0,8.219e-05,2]
[356353472,1742329838755,-500.0,8.219e-05,2]
[356353473,1742329838764,-500.0,8.219e-05,2]
[356353474,1742329838774,-500.0,8.219e-05,2]
[356353475,1742329838783,-473.47390429,8.219e-05,2]
[356353476,1742329838793,-471.6910611,8.219e-05,2]
[356353477,1742329838806,-500.0,8.219e-05,2]
[356353478,1742329838816,-509.2628223,8.219e-05,2]
[356353479,1742329838827,-500.0,8.219e-05,2]
[356353480,1742329838836,-500.0,8.219e-05,2]
[356353481,1742329838846,-500.0,8.219e-05,2]
[356353482,1742329838855,-336.49,8.219e-05,2]
[356353483,1742329838864,-500.0,8.219e-05,2]
[356353484,1742329838873,-500.0,8.219e-05,2]
[356353485,1742329838883,-500.0,8.219e-05,2]
[356353486,1742329838893,-500.0,8.219e-05,2]
[356353487,1742329838902,-528.51105447,8.219e-05,2]
[356353488,1742329838913,-500.0,8.219e-05,2]
[356353489,1742329838922,-366.09366168,8.219e-05,2]
[356353490,1742329838932,-500.0,8.219e-05,2]
[356353491,1742329838946,-500.0,8.219e-05,2]
[356353492,1742329838957,-500.0,8.219e-05,2]
[356353493,1742329838967,-500.0,8.219e-05,2]
[356353494,1742329838976,-500.0,8.219e-05,2]
[356353495,1742329838987,-500.0,8.219e-05,2]
[356353496,1742329838996,-573.4185782,8.219e-05,2]
[356353497,1742329839005,-500.0,8.219e-05,2]
[356353498,1742329839014,-500.0,8.219e-05,2]
[356353499,1742329839023,-506.87767484,8.219e-05,2]
[356353500,1742329839033,-500.0,8.219e-05,2]
[356353501,1742329839043,-503.64267702,8.219e-05,2]
[356353502,1742329839052,-500.0,8.219e-05,2]
[356353503,1742329839063,-500.0,8.219e-05,2]
[356353504,1742329839072,-500.0,8.219e-05,2]
[356353505,1742329839082,-500.0,8.219e-05,2]
[356353506,1742329839091,-500.0,8.219e-05,2]
[356353507,1742329839101,-500.0,8.219e-05,2]
[356353508,1742329839110,-500.0,8.219e-05,2]
[356353509,1742329839120,-174.68693609,8.219e-05,2]
[356353510,1742329839138,-325.31306391,8.219e-05,2]
[356353511,1742329839148,-500.0,8.219e-05,2]
[356353512,1742329839157,-13.66693609,8.219e-05,2]
[356353518,1742329841366,-0.01440202,8.219e-05,2]
[356353519,1742329841378,-486.31866189,8.219e-05,2]
[356353520,1742329841388,-500.0,8.219e-05,2]
[356353521,1742329841397,-500.0,8.219e-05,2]
[356353522,1742329841407,-500.0,8.219e-05,2]
[356353523,1742329841416,-500.0,8.219e-05,2]
[356353524,1742329841425,-511.91429928,8.219e-05,2]
[356353525,1742329841434,-500.0,8.219e-05,2]
[356353526,1742329841444,-508.5,8.219e-05,2]
[356353527,1742329841454,-500.0,8.219e-05,2]
[356353528,1742329841463,-508.52594576,8.219e-05,2]
[356353529,1742329841472,-500.0,8.219e-05,2]
[356353530,1742329841481,-500.0,8.219e-05,2]
[356353531,1742329841491,-500.0,8.219e-05,2]
[356353532,1742329841501,-140.72067614,8.219e-05,2]
[356353533,1742329841545,-45.9927,8.219e-05,2]
[356353534,1742329841561,-258.22,8.219e-05,2]
[356353538,1742329842961,-55.06662386,8.219e-05,2]
[356353539,1742329842973,-500.0,8.219e-05,2]
[356353540,1742329842986,-500.0,8.219e-05,2]
[356353541,1742329842997,-500.0,8.219e-05,2]
[356353542,1742329843010,-500.0,8.219e-05,2]
[356353543,1742329843021,-500.0,8.219e-05,2]
[356353544,1742329843033,-500.0,8.219e-05,2]
[356353545,1742329843044,-500.0,8.219e-05,2]
[356353546,1742329843056,-500.0,8.219e-05,2]
[356353547,1742329843067,-497.30959309,8.219e-05,2]
[356353548,1742329843078,-500.0,8.219e-05,2]
[356353549,1742329843089,-500.0,8.219e-05,2]
[356353552,1742329843114,-500.0,8.219e-05,2]
[356353556,1742329843128,-500.0,8.219e-05,2]
[356353559,1742329843142,-505.05459146,8.219e-05,2]
[356353561,1742329843154,-251.07330412,8.219e-05,2]
[356353564,1742329843168,-500.0,8.219e-05,2]
[356353566,1742329843179,-500.0,8.219e-05,2]
[356353568,1742329843190,-155.44588747,8.219e-05,2]
[356353579,1742329843296,-63.91966,8.219e-05,2]
[356353580,1742329843312,-332.30864504,8.219e-05,2]
[356353581,1742329843325,-500.0,8.219e-05,2]
[356353582,1742329843340,-500.0,8.219e-05,2]
[356353583,1742329843352,-500.0,8.219e-05,2]
[356353584,1742329843366,-500.0,8.219e-05,2]
[356353585,1742329843379,-508.63226057,8.219e-05,2]
[356353586,1742329843392,-500.0,8.219e-05,2]
[356353587,1742329843403,-500.0,8.219e-05,2]
[356353588,1742329843414,-500.0,8.219e-05,2]
[356353589,1742329843424,-500.0,8.219e-05,2]
[356353590,1742329843435,-501.42485186,8.219e-05,2]
[356353591,1742329843446,-500.0,8.219e-05,2]
[356353592,1742329843457,-520.23262323,8.219e-05,2]
[356353593,1742329843470,-574.04,8.219e-05,2]
[356353594,1742329843483,-500.0,8.219e-05,2]
[356353595,1742329843495,-505.72278857,8.219e-05,2]
[356353596,1742329843507,-388.1217922,8.219e-05,2]
[356353597,1742329843518,-500.0,8.219e-05,2]
[356353598,1742329843529,-500.0,8.219e-05,2]
[356353599,1742329843540,-280.56,8.219e-05,2]
[356353600,1742329843551,-500.0,8.219e-05,2]
[356353601,1742329843562,-500.0,8.219e-05,2]
[356353602,1742329843574,-190.98,8.219e-05,2]
[356353603,1742329843588,-500.0,8.219e-05,2]
[356353604,1742329843599,-500.0,8.219e-05,2]
[356353605,1742329843609,-500.0,8.219e-05,2]
[356353606,1742329843619,-500.0,8.219e-05,2]
[356353607,1742329843630,-500.0,8.219e-05,2]
[356353608,1742329843640,-506.44007909,8.219e-05,2]
[356353609,1742329843653,-869.79,8.219e-05,2]
[356353610,1742329843663,-500.0,8.219e-05,2]
[356353611,1742329843678,-448.13319428,8.219e-05,2]
[356353615,1742329846048,-51.86680572,8.219e-05,2]
[356353616,1742329846062,-500.0,8.219e-05,2]
[356353617,1742329846073,-500.0,8.219e-05,2]
[356353618,1742329846086,-1027.28,8.219e-05,2]
[356353619,1742329846097,-500.0,8.219e-05,2]
[356353620,1742329846110,-500.0,8.219e-05,2]
[356353621,1742329846121,-500.0,8.219e-05,2]
[356353622,1742329846133,-500.0,8.219e-05,2]
[356353623,1742329846145,-500.0,8.219e-05,2]
[356353624,1742329846155,-500.0,8.219e-05,2]